[Event "Betsys MČR v online bleskovém šachu 2021"]
[Site "Chess.com"]
[Date "2021.04.17"]
[Round "6"]
[White "florenc1330"]
[Black "Vesselovsky52"]
[Result "0-1"]
[WhiteElo "2098"]
[BlackElo "2331"]
[TimeControl "180+1"]
[EndTime "9:57:44 PDT"]
[Termination "Uživatel Vesselovsky52 zvítězil po vzdání soupeře"]

1. c4 {[%clk 0:02:59.9]} 1... g6 {[%clk 0:02:58.1]} 2. g3 {[%clk 0:02:59.4]}
2... Bg7 {[%clk 0:02:57.7]} 3. Bg2 {[%clk 0:02:59.5]} 3... c5 {[%clk 0:02:57.4]}
4. Nf3 {[%clk 0:02:58.2]} 4... Nc6 {[%clk 0:02:56.8]} 5. O-O {[%clk 0:02:58]}
5... e6 {[%clk 0:02:55.9]} 6. Nc3 {[%clk 0:02:58]} 6... Nge7 {[%clk 0:02:55.6]}
7. Rb1 {[%clk 0:02:57.1]} 7... O-O {[%clk 0:02:53.2]} 8. a3 {[%clk 0:02:56.4]}
8... d5 {[%clk 0:02:48.3]} 9. cxd5 {[%clk 0:02:53.5]} 9... exd5 {[%clk
0:02:47.1]} 10. d3 {[%clk 0:02:48.2]} 10... d4 {[%clk 0:02:44.7]} 11. Ne4 {[%clk
0:02:44.5]} 11... b6 {[%clk 0:02:42.8]} 12. b4 {[%clk 0:02:42.8]} 12... cxb4
{[%clk 0:02:39.2]} 13. axb4 {[%clk 0:02:41.8]} 13... h6 {[%clk 0:02:32.8]} 14.
b5 {[%clk 0:02:41.4]} 14... Na5 {[%clk 0:02:28.3]} 15. Ba3 {[%clk 0:02:40.5]}
15... Be6 {[%clk 0:02:14.2]} 16. Nd6 {[%clk 0:02:31.6]} 16... Qd7 {[%clk
0:02:06.7]} 17. Nd2 {[%clk 0:02:25.8]} 17... Rad8 {[%clk 0:01:59.5]} 18. Qc2
{[%clk 0:02:17]} 18... Nd5 {[%clk 0:01:55]} 19. N2e4 {[%clk 0:01:44.6]} 19... f5
{[%clk 0:01:49.2]} 20. Nd2 {[%clk 0:01:40.7]} 20... Nc3 {[%clk 0:01:47.3]} 21.
Rbe1 {[%clk 0:01:25.9]} 21... Rf6 {[%clk 0:01:44.8]} 22. N6c4 {[%clk 0:01:25.2]}
22... Nxc4 {[%clk 0:01:41]} 23. Nxc4 {[%clk 0:01:21.7]} 23... Bd5 {[%clk
0:01:31]} 24. e4 {[%clk 0:01:07.7]} 24... fxe4 {[%clk 0:01:23.2]} 25. Ne5 {[%clk
0:00:58.7]} 25... Qe6 {[%clk 0:01:17]} 26. dxe4 {[%clk 0:00:56]} 26... Bb3
{[%clk 0:01:12]} 27. Qd2 {[%clk 0:00:46.5]} 27... Qxe5 {[%clk 0:01:08.8]} 28. f4
{[%clk 0:00:45.4]} 28... Qxb5 {[%clk 0:01:04.6]} 29. e5 {[%clk 0:00:45.1]} 29...
Re6 {[%clk 0:00:59.8]} 30. Bh3 {[%clk 0:00:42.1]} 30... Ree8 {[%clk 0:00:56.9]}
31. Bb2 {[%clk 0:00:39.2]} 31... Na4 {[%clk 0:00:49.2]} 32. Bxd4 {[%clk
0:00:33.8]} 32... Qd5 {[%clk 0:00:45.2]} 33. Rf2 {[%clk 0:00:30.4]} 33... Qxd4
{[%clk 0:00:44]} 34. Qe2 {[%clk 0:00:27.7]} 34... Nc3 {[%clk 0:00:41.5]} 35. Qg4
{[%clk 0:00:27.2]} 35... Ne4 {[%clk 0:00:38.3]} 36. Rf1 {[%clk 0:00:24.1]} 36...
Nxf2 {[%clk 0:00:36.9]} 37. Rxf2 {[%clk 0:00:24.5]} 37... Qe3 {[%clk 0:00:35.9]}
38. Qxg6 {[%clk 0:00:21.5]} 38... Rd1+ {[%clk 0:00:29.4]} 39. Bf1 {[%clk
0:00:20.5]} 39... Bf7 {[%clk 0:00:25.7]} 40. Qc2 {[%clk 0:00:16.9]} 40... Red8
{[%clk 0:00:23]} 41. f5 {[%clk 0:00:12.4]} 41... R1d2 {[%clk 0:00:20.2]} 0-1

[Event "Betsys MČR v online bleskovém šachu 2021"]
[Site "Chess.com"]
[Date "2021.04.17"]
[Round "6"]
[White "Krejcak"]
[Black "bezzuton"]
[Result "1-0"]
[WhiteElo "2004"]
[BlackElo "1483"]
[TimeControl "180+1"]
[EndTime "9:57:44 PDT"]
[Termination "Uživatel Krejcak zvítězil na čas"]

1. e4 {[%clk 0:03:00.9]} 1... e6 {[%clk 0:02:59.4]} 2. d4 {[%clk 0:03:00.2]}
2... d5 {[%clk 0:03:00.3]} 3. e5 {[%clk 0:03:00.4]} 3... c5 {[%clk 0:02:57]} 4.
c3 {[%clk 0:03:00.7]} 4... Nc6 {[%clk 0:02:55.4]} 5. Be3 {[%clk 0:03:00.4]} 5...
Nge7 {[%clk 0:02:54.9]} 6. Qd2 {[%clk 0:03:00]} 6... Nf5 {[%clk 0:02:46.3]} 7.
Nf3 {[%clk 0:02:59.5]} 7... cxd4 {[%clk 0:02:41.4]} 8. cxd4 {[%clk 0:02:58.7]}
8... Qb6 {[%clk 0:02:40.1]} 9. Nc3 {[%clk 0:02:57.6]} 9... Bd7 {[%clk 0:02:35]}
10. Rc1 {[%clk 0:02:56.5]} 10... Bb4 {[%clk 0:02:33.5]} 11. Be2 {[%clk
0:02:49.3]} 11... Bxc3 {[%clk 0:02:18.8]} 12. Rxc3 {[%clk 0:02:45.6]} 12... Nxe3
{[%clk 0:02:14.9]} 13. Rxe3 {[%clk 0:02:33.7]} 13... Rc8 {[%clk 0:02:04.5]} 14.
O-O {[%clk 0:02:33.2]} 14... Nb4 {[%clk 0:02:03.8]} 15. Rb3 {[%clk 0:02:15.6]}
15... a5 {[%clk 0:01:27.9]} 16. a3 {[%clk 0:02:14.6]} 16... Ba4 {[%clk
0:01:23.8]} 17. Rc3 {[%clk 0:02:06.6]} 17... Rxc3 {[%clk 0:01:18.9]} 18. Qxc3
{[%clk 0:02:02.2]} 18... Nc6 {[%clk 0:01:13.4]} 19. Rc1 {[%clk 0:01:55.2]} 19...
Qb3 {[%clk 0:01:06.3]} 20. Qxb3 {[%clk 0:01:46.6]} 20... Bxb3 {[%clk 0:01:04.7]}
21. Bb5 {[%clk 0:01:46.9]} 21... Kd7 {[%clk 0:01:03.7]} 22. Kf1 {[%clk
0:01:41.6]} 22... f6 {[%clk 0:00:59.4]} 23. Ke2 {[%clk 0:01:39.9]} 23... Rc8
{[%clk 0:00:44.8]} 24. Kd2 {[%clk 0:01:30.2]} 24... a4 {[%clk 0:00:33.1]} 25.
Rc3 {[%clk 0:01:03.9]} 25... fxe5 {[%clk 0:00:22.2]} 26. Nxe5+ {[%clk
0:01:02.8]} 26... Kd6 {[%clk 0:00:18.9]} 27. Bxc6 {[%clk 0:00:45.8]} 27... bxc6
{[%clk 0:00:16.6]} 28. Nd3 {[%clk 0:00:45]} 28... Ke7 {[%clk 0:00:13.1]} 29. Nc5
{[%clk 0:00:43.8]} 29... Kd6 {[%clk 0:00:11.5]} 30. Nxb3 {[%clk 0:00:42.5]}
30... axb3 {[%clk 0:00:11.2]} 31. Rxb3 {[%clk 0:00:42.7]} 31... c5 {[%clk
0:00:11.8]} 32. Rb6+ {[%clk 0:00:39.3]} 32... Kd7 {[%clk 0:00:10.3]} 33. Rb7+
{[%clk 0:00:35.9]} 33... Rc7 {[%clk 0:00:07]} 34. Rxc7+ {[%clk 0:00:35.5]} 34...
Kxc7 {[%clk 0:00:07.9]} 35. dxc5 {[%clk 0:00:35.8]} 35... Kc6 {[%clk 0:00:08.8]}
36. b4 {[%clk 0:00:35.9]} 36... e5 {[%clk 0:00:07.5]} 37. Kd3 {[%clk 0:00:35.7]}
37... g5 {[%clk 0:00:05.4]} 38. g3 {[%clk 0:00:34.2]} 38... h5 {[%clk
0:00:05.5]} 39. Ke3 {[%clk 0:00:31.2]} 39... Kb5 {[%clk 0:00:03.4]} 40. f4
{[%clk 0:00:30.6]} 40... exf4+ {[%clk 0:00:02.5]} 41. gxf4 {[%clk 0:00:30.6]}
41... gxf4+ {[%clk 0:00:02.4]} 42. Kxf4 {[%clk 0:00:30.5]} 1-0

[Event "Betsys MČR v online bleskovém šachu 2021"]
[Site "Chess.com"]
[Date "2021.04.17"]
[Round "6"]
[White "Petr_Zacek"]
[Black "121pepa"]
[Result "0-1"]
[WhiteElo "1752"]
[BlackElo "1430"]
[TimeControl "180+1"]
[EndTime "9:57:44 PDT"]
[Termination "Uživatel 121pepa zvítězil na čas"]

1. d4 {[%clk 0:03:00.9]} 1... Nf6 {[%clk 0:02:57.7]} 2. Bg5 {[%clk 0:02:59.3]}
2... e6 {[%clk 0:02:54.6]} 3. Nf3 {[%clk 0:02:58.6]} 3... g6 {[%clk 0:02:52.9]}
4. e4 {[%clk 0:02:55.3]} 4... Be7 {[%clk 0:02:47.9]} 5. Nc3 {[%clk 0:02:51.2]}
5... d6 {[%clk 0:02:45.4]} 6. Bd3 {[%clk 0:02:47.8]} 6... Nbd7 {[%clk
0:02:42.2]} 7. O-O {[%clk 0:02:47.1]} 7... c5 {[%clk 0:02:40.6]} 8. Qd2 {[%clk
0:02:39.8]} 8... b6 {[%clk 0:02:07.1]} 9. e5 {[%clk 0:02:38]} 9... Ng8 {[%clk
0:01:52.6]} 10. Be3 {[%clk 0:02:32.1]} 10... cxd4 {[%clk 0:01:48]} 11. Bxd4
{[%clk 0:02:27.9]} 11... d5 {[%clk 0:01:46.9]} 12. Rfe1 {[%clk 0:02:18.8]} 12...
Nc5 {[%clk 0:01:46.1]} 13. Bb5+ {[%clk 0:02:16.7]} 13... Bd7 {[%clk 0:01:45.1]}
14. b4 {[%clk 0:02:04]} 14... Bxb5 {[%clk 0:01:40]} 15. Nxb5 {[%clk 0:02:02.9]}
15... Nb7 {[%clk 0:01:35.9]} 16. a3 {[%clk 0:01:59.8]} 16... a6 {[%clk
0:01:24.3]} 17. Nd6+ {[%clk 0:01:48.4]} 17... Nxd6 {[%clk 0:01:22.6]} 18. exd6
{[%clk 0:01:48]} 18... Bf6 {[%clk 0:01:21.7]} 19. Bxf6 {[%clk 0:01:40.3]} 19...
Nxf6 {[%clk 0:01:19.2]} 20. Qf4 {[%clk 0:01:31.6]} 20... O-O {[%clk 0:01:13.2]}
21. Rac1 {[%clk 0:01:22.8]} 21... Ne4 {[%clk 0:01:11.3]} 22. c4 {[%clk
0:01:12.7]} 22... Nxd6 {[%clk 0:00:53.8]} 23. cxd5 {[%clk 0:01:11.2]} 23... exd5
{[%clk 0:00:52.6]} 24. Red1 {[%clk 0:01:10.4]} 24... Ne4 {[%clk 0:00:48.8]} 25.
Rd4 {[%clk 0:01:03.2]} 25... f5 {[%clk 0:00:46.6]} 26. Rcd1 {[%clk 0:01:02.4]}
26... Nc3 {[%clk 0:00:42]} 27. R1d2 {[%clk 0:00:55.7]} 27... Ne4 {[%clk
0:00:41]} 28. R2d3 {[%clk 0:00:51.9]} 28... Qf6 {[%clk 0:00:33.7]} 29. h3 {[%clk
0:00:46.1]} 29... Rad8 {[%clk 0:00:27.7]} 30. Ne5 {[%clk 0:00:32.4]} 30... Rfe8
{[%clk 0:00:22.6]} 31. Nf3 {[%clk 0:00:29.7]} 31... b5 {[%clk 0:00:19.9]} 32.
Nd2 {[%clk 0:00:19.7]} 32... Qe5 {[%clk 0:00:17.6]} 33. Qxe5 {[%clk 0:00:09.5]}
33... Rxe5 {[%clk 0:00:16.5]} 34. f4 {[%clk 0:00:08.2]} 34... Ree8 {[%clk
0:00:15.4]} 35. Nxe4 {[%clk 0:00:07.6]} 35... fxe4 {[%clk 0:00:13.5]} 36. Rd1
{[%clk 0:00:06.2]} 36... e3 {[%clk 0:00:12.4]} 37. Re1 {[%clk 0:00:01.1]} 37...
Re4 {[%clk 0:00:11.1]} 0-1

[Event "Betsys MČR v online bleskovém šachu 2021"]
[Site "Chess.com"]
[Date "2021.04.17"]
[Round "6"]
[White "Adam20032007"]
[Black "alenka777"]
[Result "1-0"]
[WhiteElo "1747"]
[BlackElo "1287"]
[TimeControl "180+1"]
[EndTime "9:57:45 PDT"]
[Termination "Uživatel Adam20032007 zvítězil matem"]

1. d4 {[%clk 0:03:00.9]} 1... d5 {[%clk 0:02:59]} 2. Nf3 {[%clk 0:02:58.8]} 2...
Nc6 {[%clk 0:02:58.7]} 3. e3 {[%clk 0:02:58]} 3... Nf6 {[%clk 0:02:58.7]} 4. Bd3
{[%clk 0:02:58.2]} 4... Bg4 {[%clk 0:02:57.3]} 5. c4 {[%clk 0:02:54.7]} 5...
dxc4 {[%clk 0:02:55.4]} 6. Bxc4 {[%clk 0:02:53.2]} 6... e6 {[%clk 0:02:55.2]} 7.
O-O {[%clk 0:02:52.8]} 7... Bd6 {[%clk 0:02:54.1]} 8. Nbd2 {[%clk 0:02:52]} 8...
a6 {[%clk 0:02:41.2]} 9. b3 {[%clk 0:02:50.6]} 9... O-O {[%clk 0:02:35.7]} 10.
Bb2 {[%clk 0:02:46]} 10... Ne7 {[%clk 0:02:35.1]} 11. Rc1 {[%clk 0:02:43.6]}
11... Ng6 {[%clk 0:02:26.9]} 12. h3 {[%clk 0:02:40.2]} 12... Bf5 {[%clk
0:02:25.6]} 13. a4 {[%clk 0:02:09.3]} 13... c6 {[%clk 0:02:25]} 14. Re1 {[%clk
0:02:06]} 14... Qc7 {[%clk 0:02:24.8]} 15. e4 {[%clk 0:01:47.6]} 15... Bxh3
{[%clk 0:02:08.9]} 16. e5 {[%clk 0:01:43.5]} 16... Bxe5 {[%clk 0:01:58.9]} 17.
dxe5 {[%clk 0:01:43]} 17... Ng4 {[%clk 0:01:53.4]} 18. gxh3 {[%clk 0:01:40.7]}
18... N4xe5 {[%clk 0:01:50.3]} 19. Nxe5 {[%clk 0:01:39.6]} 19... Nxe5 {[%clk
0:01:47.7]} 20. Bxe5 {[%clk 0:01:39.4]} 20... Qe7 {[%clk 0:01:45.6]} 21. Bd3
{[%clk 0:01:35]} 21... Qh4 {[%clk 0:01:43.4]} 22. Re3 {[%clk 0:01:26.3]} 22...
Qg5+ {[%clk 0:01:41.9]} 23. Bg3 {[%clk 0:01:24.2]} 23... f5 {[%clk 0:01:36]} 24.
Nf3 {[%clk 0:01:10.8]} 24... Qf6 {[%clk 0:01:32.6]} 25. Be5 {[%clk 0:01:09]}
25... Qe7 {[%clk 0:01:30]} 26. Kh2 {[%clk 0:01:08]} 26... f4 {[%clk 0:01:25.7]}
27. Re1 {[%clk 0:01:01.5]} 27... g5 {[%clk 0:01:24.3]} 28. Rg1 {[%clk
0:01:01.1]} 28... h6 {[%clk 0:01:23.6]} 29. Bb1 {[%clk 0:00:57.3]} 29... Rad8
{[%clk 0:01:20.9]} 30. Qc2 {[%clk 0:00:57.1]} 30... Rf7 {[%clk 0:01:05]} 31. h4
{[%clk 0:00:57.3]} 31... Rg7 {[%clk 0:00:54.4]} 32. Bxg7 {[%clk 0:00:53.9]}
32... Qxg7 {[%clk 0:00:53.6]} 33. hxg5 {[%clk 0:00:53.8]} 33... Rd5 {[%clk
0:00:47.6]} 34. Qh7+ {[%clk 0:00:33.1]} 34... Qxh7 {[%clk 0:00:44.2]} 35. Bxh7+
{[%clk 0:00:33.6]} 35... Kxh7 {[%clk 0:00:44]} 36. gxh6 {[%clk 0:00:31.9]} 36...
Rh5+ {[%clk 0:00:35.6]} 37. Kg2 {[%clk 0:00:31.4]} 37... Rd5 {[%clk 0:00:25.8]}
38. Rcd1 {[%clk 0:00:28.2]} 38... Rf5 {[%clk 0:00:19.9]} 39. Rd7+ {[%clk
0:00:26.3]} 39... Kxh6 {[%clk 0:00:18.9]} 40. Kf1 {[%clk 0:00:23.9]} 40... Rh5
{[%clk 0:00:16.6]} 41. Rd8 {[%clk 0:00:19.8]} 41... e5 {[%clk 0:00:13.5]} 42.
Rh8# {[%clk 0:00:06.5]} 1-0

[Event "Betsys MČR v online bleskovém šachu 2021"]
[Site "Chess.com"]
[Date "2021.04.17"]
[Round "6"]
[White "Hapinka"]
[Black "jankrelina07"]
[Result "1-0"]
[WhiteElo "1839"]
[BlackElo "1525"]
[TimeControl "180+1"]
[EndTime "9:57:47 PDT"]
[Termination "Uživatel Hapinka zvítězil na čas"]

1. e4 {[%clk 0:03:00.9]} 1... c5 {[%clk 0:02:58.7]} 2. Nf3 {[%clk 0:03:01.2]}
2... g6 {[%clk 0:02:57.7]} 3. d4 {[%clk 0:03:01.7]} 3... cxd4 {[%clk 0:02:53.5]}
4. Nxd4 {[%clk 0:03:01.6]} 4... Bg7 {[%clk 0:02:52.9]} 5. Be3 {[%clk 0:03:00.8]}
5... Nc6 {[%clk 0:02:53]} 6. Nc3 {[%clk 0:03:00.5]} 6... d6 {[%clk 0:02:53.2]}
7. Be2 {[%clk 0:03:00.1]} 7... Bd7 {[%clk 0:02:51.6]} 8. O-O {[%clk 0:02:59.8]}
8... Nf6 {[%clk 0:02:50.4]} 9. Nb3 {[%clk 0:02:59.5]} 9... a6 {[%clk 0:02:49.9]}
10. f4 {[%clk 0:02:58.9]} 10... O-O {[%clk 0:02:47.9]} 11. Bf3 {[%clk
0:02:53.7]} 11... Rc8 {[%clk 0:02:45.3]} 12. Nd5 {[%clk 0:02:37.8]} 12... Nxd5
{[%clk 0:02:34.8]} 13. exd5 {[%clk 0:02:37.7]} 13... Nb8 {[%clk 0:02:33.2]} 14.
c3 {[%clk 0:02:36.6]} 14... Be8 {[%clk 0:02:28.2]} 15. Bd4 {[%clk 0:02:36]}
15... Nd7 {[%clk 0:02:25.5]} 16. Bxg7 {[%clk 0:02:34]} 16... Kxg7 {[%clk
0:02:24.8]} 17. Qd4+ {[%clk 0:02:31.6]} 17... Nf6 {[%clk 0:02:24.7]} 18. g4
{[%clk 0:02:30.1]} 18... Kg8 {[%clk 0:02:24.6]} 19. f5 {[%clk 0:02:24.8]} 19...
Qc7 {[%clk 0:02:17.5]} 20. g5 {[%clk 0:02:20.1]} 20... Nd7 {[%clk 0:02:14.5]}
21. f6 {[%clk 0:02:16.7]} 21... Kh8 {[%clk 0:01:45.3]} 22. Bg2 {[%clk
0:02:08.6]} 22... Ne5 {[%clk 0:01:43.6]} 23. Qh4 {[%clk 0:02:01.4]} 23... Qb6+
{[%clk 0:01:39.5]} 24. Kh1 {[%clk 0:01:57.5]} 24... Qe3 {[%clk 0:01:37.7]} 25.
Rae1 {[%clk 0:01:46.2]} 25... Qb6 {[%clk 0:01:28]} 26. Qh6 {[%clk 0:01:38.5]}
26... Rg8 {[%clk 0:01:27.3]} 27. Rf4 {[%clk 0:01:33.3]} 27... exf6 {[%clk
0:01:25.3]} 28. gxf6 {[%clk 0:01:28.3]} 28... g5 {[%clk 0:01:15.3]} 29. Be4
{[%clk 0:01:12.9]} 29... Ng6 {[%clk 0:01:07.9]} 30. Qxg5 {[%clk 0:01:10.3]}
30... Qd8 {[%clk 0:00:58]} 31. Rf3 {[%clk 0:01:05.1]} 31... Bd7 {[%clk
0:00:50.8]} 32. Nd4 {[%clk 0:00:56]} 32... Qf8 {[%clk 0:00:35.4]} 33. Nf5 {[%clk
0:00:52.5]} 33... Ne5 {[%clk 0:00:32.6]} 34. Qh5 {[%clk 0:00:47.2]} 34... Nxf3
{[%clk 0:00:13]} 35. Ng7 {[%clk 0:00:36.2]} 35... Rxg7 {[%clk 0:00:12.6]} 36.
fxg7+ {[%clk 0:00:35.9]} 36... Qxg7 {[%clk 0:00:12.4]} 37. Qxf3 {[%clk
0:00:35.3]} 37... Re8 {[%clk 0:00:11.4]} 38. Rf1 {[%clk 0:00:31.5]} 38... f5
{[%clk 0:00:07.3]} 39. Bd3 {[%clk 0:00:29.3]} 39... Qe5 {[%clk 0:00:04.8]} 40.
Rg1 {[%clk 0:00:18.7]} 40... Rf8 {[%clk 0:00:02.4]} 41. Qg2 {[%clk 0:00:16.5]}
1-0

[Event "Betsys MČR v online bleskovém šachu 2021"]
[Site "Chess.com"]
[Date "2021.04.17"]
[Round "6"]
[White "zarathutra"]
[Black "RomanHlavicka"]
[Result "0-1"]
[WhiteElo "1810"]
[BlackElo "1529"]
[TimeControl "180+1"]
[EndTime "9:57:47 PDT"]
[Termination "Uživatel RomanHlavicka zvítězil matem"]

1. d4 {[%clk 0:03:00.9]} 1... Nf6 {[%clk 0:02:59.1]} 2. c4 {[%clk 0:03:01]} 2...
g6 {[%clk 0:02:59.2]} 3. Nc3 {[%clk 0:03:01]} 3... Bg7 {[%clk 0:02:59.3]} 4. e4
{[%clk 0:03:00.7]} 4... d6 {[%clk 0:02:54.7]} 5. h3 {[%clk 0:03:00.4]} 5... O-O
{[%clk 0:02:54.7]} 6. Be3 {[%clk 0:03:00.4]} 6... Nbd7 {[%clk 0:02:54.6]} 7. g4
{[%clk 0:02:57.4]} 7... e5 {[%clk 0:02:53.2]} 8. d5 {[%clk 0:02:57]} 8... c6
{[%clk 0:02:51.8]} 9. Nge2 {[%clk 0:02:56.5]} 9... cxd5 {[%clk 0:02:48.3]} 10.
cxd5 {[%clk 0:02:57.4]} 10... a6 {[%clk 0:02:47.4]} 11. Ng3 {[%clk 0:02:56.9]}
11... Nc5 {[%clk 0:02:42]} 12. f3 {[%clk 0:02:55.2]} 12... b5 {[%clk 0:02:34.4]}
13. b4 {[%clk 0:02:41.4]} 13... Ncd7 {[%clk 0:02:21.7]} 14. Be2 {[%clk
0:02:41.3]} 14... Nb6 {[%clk 0:02:20]} 15. O-O {[%clk 0:02:38.8]} 15... Nc4
{[%clk 0:02:19.8]} 16. Bxc4 {[%clk 0:02:37.6]} 16... bxc4 {[%clk 0:02:17]} 17.
Na4 {[%clk 0:02:19.6]} 17... Bd7 {[%clk 0:02:12.6]} 18. Nb6 {[%clk 0:02:18.6]}
18... Rb8 {[%clk 0:02:03.6]} 19. Nxd7 {[%clk 0:02:17.9]} 19... Qxd7 {[%clk
0:02:03.2]} 20. a3 {[%clk 0:02:16.8]} 20... Qb5 {[%clk 0:01:58.9]} 21. Ne2
{[%clk 0:02:09.5]} 21... Rfc8 {[%clk 0:01:49.4]} 22. Nc3 {[%clk 0:02:09]} 22...
Qd7 {[%clk 0:01:45.4]} 23. Qe2 {[%clk 0:02:07.2]} 23... Ne8 {[%clk 0:01:38.1]}
24. Rfc1 {[%clk 0:02:04.4]} 24... Nc7 {[%clk 0:01:37.2]} 25. Rc2 {[%clk
0:01:57.8]} 25... Nb5 {[%clk 0:01:36.7]} 26. Nd1 {[%clk 0:01:44.9]} 26... Rc7
{[%clk 0:01:29.8]} 27. a4 {[%clk 0:01:36.5]} 27... Na7 {[%clk 0:01:24.6]} 28.
Rxc4 {[%clk 0:01:33.7]} 28... Rxc4 {[%clk 0:01:22.2]} 29. Qxc4 {[%clk
0:01:33.2]} 29... Qb7 {[%clk 0:01:10.4]} 30. Nc3 {[%clk 0:01:26.5]} 30... Nc8
{[%clk 0:00:51]} 31. b5 {[%clk 0:01:20.9]} 31... axb5 {[%clk 0:00:49.3]} 32.
Nxb5 {[%clk 0:01:20.9]} 32... Bf8 {[%clk 0:00:39.2]} 33. Kg2 {[%clk 0:00:58.2]}
33... Nb6 {[%clk 0:00:38.8]} 34. Qc6 {[%clk 0:00:52]} 34... Nxa4 {[%clk
0:00:30.3]} 35. Qxb7 {[%clk 0:00:44.8]} 35... Rxb7 {[%clk 0:00:29.9]} 36. Nxd6
{[%clk 0:00:42.4]} 36... Bxd6 {[%clk 0:00:24.8]} 37. Rxa4 {[%clk 0:00:41.6]}
37... Rb3 {[%clk 0:00:21.1]} 38. Ba7 {[%clk 0:00:35.1]} 38... Rb2+ {[%clk
0:00:19.8]} 39. Kg3 {[%clk 0:00:31.5]} 39... Bb4 {[%clk 0:00:19.8]} 40. Ra1
{[%clk 0:00:28.4]} 40... g5 {[%clk 0:00:17.6]} 41. h4 {[%clk 0:00:27.3]} 41...
Bc3 {[%clk 0:00:13.8]} 42. Rc1 {[%clk 0:00:16.8]} 42... Bd2 {[%clk 0:00:11.2]}
43. Rd1 {[%clk 0:00:17.1]} 43... Bf4+ {[%clk 0:00:10.1]} 44. Kh3 {[%clk
0:00:15.4]} 44... Rh2# {[%clk 0:00:10.1]} 0-1

[Event "Betsys MČR v online bleskovém šachu 2021"]
[Site "Chess.com"]
[Date "2021.04.17"]
[Round "6"]
[White "zdenav"]
[Black "TomasOrnet1"]
[Result "1-0"]
[WhiteElo "1822"]
[BlackElo "1503"]
[TimeControl "180+1"]
[EndTime "9:57:48 PDT"]
[Termination "Uživatel zdenav zvítězil na čas"]

1. e4 {[%clk 0:03:00.9]} 1... e5 {[%clk 0:02:58]} 2. Nf3 {[%clk 0:03:00.4]} 2...
Nc6 {[%clk 0:02:56.3]} 3. Bc4 {[%clk 0:03:00.3]} 3... Bc5 {[%clk 0:02:54.8]} 4.
O-O {[%clk 0:02:59.9]} 4... d6 {[%clk 0:02:54.5]} 5. h3 {[%clk 0:02:59]} 5... h6
{[%clk 0:02:53.5]} 6. d3 {[%clk 0:02:58.7]} 6... Nf6 {[%clk 0:02:52.7]} 7. c3
{[%clk 0:02:58.5]} 7... O-O {[%clk 0:02:51.5]} 8. b4 {[%clk 0:02:58.1]} 8... Bb6
{[%clk 0:02:50.9]} 9. a4 {[%clk 0:02:57.8]} 9... a6 {[%clk 0:02:50.4]} 10. Nbd2
{[%clk 0:02:56.4]} 10... Nh7 {[%clk 0:02:45.9]} 11. Re1 {[%clk 0:02:50.4]} 11...
Ng5 {[%clk 0:02:39.2]} 12. Nxg5 {[%clk 0:02:49.2]} 12... Qxg5 {[%clk 0:02:37.7]}
13. Nf1 {[%clk 0:02:46.8]} 13... Qg6 {[%clk 0:02:37.4]} 14. Qf3 {[%clk
0:02:45.5]} 14... Be6 {[%clk 0:02:35.1]} 15. Be3 {[%clk 0:02:40.3]} 15... Bxc4
{[%clk 0:02:34.3]} 16. dxc4 {[%clk 0:02:39.4]} 16... f5 {[%clk 0:02:32.6]} 17.
Bxb6 {[%clk 0:02:37.3]} 17... cxb6 {[%clk 0:02:30.2]} 18. exf5 {[%clk
0:02:36.7]} 18... Qxf5 {[%clk 0:02:29.2]} 19. Qe3 {[%clk 0:02:36.4]} 19... Qf4
{[%clk 0:02:27.1]} 20. Qxb6 {[%clk 0:02:35.2]} 20... Rf7 {[%clk 0:02:23.5]} 21.
Qe3 {[%clk 0:02:13.7]} 21... Qxc4 {[%clk 0:02:20.3]} 22. Nd2 {[%clk 0:02:12.9]}
22... Qf4 {[%clk 0:02:18.7]} 23. Ne4 {[%clk 0:02:12]} 23... Qxe3 {[%clk
0:02:16.7]} 24. Rxe3 {[%clk 0:02:11.3]} 24... Rd8 {[%clk 0:02:04.8]} 25. Rd1
{[%clk 0:02:05.1]} 25... d5 {[%clk 0:02:04.1]} 26. Nc5 {[%clk 0:02:03.5]} 26...
d4 {[%clk 0:01:59.8]} 27. Re4 {[%clk 0:01:55.1]} 27... dxc3 {[%clk 0:01:59.2]}
28. Rxd8+ {[%clk 0:01:52.6]} 28... Nxd8 {[%clk 0:01:58]} 29. Rc4 {[%clk
0:01:50.9]} 29... Nc6 {[%clk 0:01:56.3]} 30. b5 {[%clk 0:01:49.4]} 30... axb5
{[%clk 0:01:48.8]} 31. axb5 {[%clk 0:01:48.8]} 31... Nd4 {[%clk 0:01:48.3]} 32.
Ne4 {[%clk 0:01:32.5]} 32... c2 {[%clk 0:01:46.7]} 33. Kf1 {[%clk 0:01:31]}
33... Rd7 {[%clk 0:01:28.4]} 34. f3 {[%clk 0:01:25]} 34... Rd5 {[%clk
0:01:26.4]} 35. Nc5 {[%clk 0:01:15]} 35... b6 {[%clk 0:01:19.9]} 36. Nd3 {[%clk
0:01:11.9]} 36... Rxb5 {[%clk 0:01:18.2]} 37. Kf2 {[%clk 0:01:11.5]} 37... Rb1
{[%clk 0:01:13.8]} 38. Ke3 {[%clk 0:01:03.2]} 38... b5 {[%clk 0:01:12.1]} 39.
Rc8+ {[%clk 0:00:57.6]} 39... Kh7 {[%clk 0:01:09]} 40. Ke4 {[%clk 0:00:56.9]}
40... b4 {[%clk 0:00:53.9]} 41. Kxe5 {[%clk 0:00:51.4]} 41... Ne2 {[%clk
0:00:11.3]} 42. Rxc2 {[%clk 0:00:48.2]} 42... Ng3 {[%clk 0:00:09.6]} 43. Rb2
{[%clk 0:00:44]} 43... Rxb2 {[%clk 0:00:07.6]} 44. Nxb2 {[%clk 0:00:43.2]} 44...
Kg6 {[%clk 0:00:06.2]} 45. Kf4 {[%clk 0:00:39.5]} 45... Nh5+ {[%clk 0:00:05.1]}
46. Ke3 {[%clk 0:00:37.8]} 46... Kg5 {[%clk 0:00:01.3]} 47. g4 {[%clk
0:00:31.8]} 1-0